bitfinex/quotes_BTCUSD_20230115
["timestamp","ask_amount","ask_price","bid_price","bid_amount"]
[1673768023658,0.02559958,20703.0,20702.0,4.38589649]
[1673768023914,0.02559958,20703.0,20702.0,5.04049649]
[1673768024174,0.01101445,20703.0,20702.0,5.10189221]
[1673768024421,0.01101445,20703.0,20702.0,5.19389221]
[1673768024678,0.01101445,20703.0,20702.0,4.81358751]
[1673768024930,0.01101445,20703.0,20702.0,4.90458751]
[1673768025434,0.01101445,20703.0,20702.0,5.19288549]
[1673768025688,0.00024,20707.0,20703.0,0.1]
[1673768025936,0.00024,20707.0,20706.0,0.259]
[1673768026187,0.00024,20707.0,20706.0,2.34439769]
[1673768026446,0.00024,20707.0,20706.0,3.00206651]
[1673768026955,0.00024,20707.0,20706.0,3.09406651]
[1673768029300,0.00024,20707.0,20706.0,3.00206651]
[1673768029547,0.00024,20707.0,20706.0,3.09406651]
[1673768029823,0.00024,20707.0,20706.0,3.00206651]
[1673768030073,0.00024,20707.0,20706.0,3.09406651]
[1673768030325,0.00024,20707.0,20706.0,3.09422298]
[1673768031119,0.00024,20707.0,20706.0,3.74892298]
[1673768031671,0.00024,20707.0,20706.0,4.15572298]
[1673768032131,0.00024,20707.0,20706.0,4.06372298]
[1673768032384,0.00024,20707.0,20706.0,4.15572298]
[1673768033914,0.00024,20707.0,20706.0,4.06372298]
[1673768034434,0.00024,20707.0,20706.0,4.15572298]
[1673768034690,0.00024,20707.0,20706.0,4.06372298]
[1673768034945,0.00024,20707.0,20706.0,4.15572298]
[1673768035713,0.02767776,20711.0,20706.0,7.02891369]
[1673768035973,0.02767776,20711.0,20710.0,0.2607]
[1673768036223,0.02767776,20711.0,20710.0,3.29417646]
[1673768036473,0.02767776,20711.0,20710.0,3.10381997]
[1673768037766,0.02767776,20711.0,20710.0,3.19581997]
[1673768040328,0.02767776,20711.0,20710.0,2.89581997]
[1673768041859,0.02767776,20711.0,20710.0,3.19581997]
[1673768042377,0.01819027,20711.0,20710.0,3.19581997]
[1673768043925,0.01819027,20711.0,20710.0,2.71296197]
[1673768044183,0.01819027,20711.0,20710.0,2.45226197]
[1673768045484,0.01819027,20711.0,20710.0,2.58286197]
[1673768045781,0.01819027,20711.0,20710.0,3.55696088]
[1673768045996,0.01819027,20711.0,20710.0,3.46496088]
[1673768046211,0.01819027,20711.0,20710.0,3.55696088]
[1673768046512,0.01819027,20711.0,20710.0,2.59136197]
[1673768046763,0.01819027,20711.0,20710.0,2.60486396]
[1673768047315,0.01819027,20711.0,20710.0,1.99459315]
[1673768047566,0.01819027,20711.0,20710.0,2.63871724]
[1673768048846,0.01819027,20711.0,20710.0,2.15585924]
[1673768049097,0.01819027,20711.0,20710.0,1.67300124]
[1673768049597,0.01819027,20711.0,20710.0,2.15585924]
[1673768050617,0.01819027,20711.0,20710.0,2.06385924]
[1673768050877,0.01919027,20711.0,20710.0,1.50373515]
[1673768051151,0.01919027,20711.0,20710.0,2.82706268]
[1673768051954,0.01819027,20711.0,20710.0,2.74306268]
[1673768052462,0.01919027,20711.0,20710.0,2.82706268]
[1673768053203,0.01819027,20711.0,20710.0,2.88677869]
[1673768053446,0.01919027,20711.0,20710.0,2.97077869]
[1673768054764,0.01919027,20711.0,20710.0,2.82706268]
[1673768055021,0.01819027,20711.0,20710.0,2.88677869]
[1673768055273,0.01919027,20711.0,20710.0,2.97927869]
[1673768055533,0.00995819,20711.0,20710.0,3.79544527]
[1673768055795,0.00713662,20712.0,20711.0,0.1]
[1673768056051,0.00759951,20714.0,20711.0,2.37883416]
[1673768056318,0.00759951,20714.0,20713.0,0.47720169]
[1673768056563,0.00759951,20714.0,20713.0,3.87167042]
[1673768058373,0.00859951,20714.0,20713.0,3.96517042]
[1673768058624,0.00859951,20714.0,20713.0,4.10920827]
[1673768058874,0.00859951,20714.0,20713.0,3.96517042]
[1673768059666,0.00859951,20714.0,20713.0,4.10920827]
[1673768059950,0.00859951,20714.0,20713.0,3.96517042]
[1673768061500,0.00859951,20714.0,20713.0,4.10920827]
[1673768062003,0.00859951,20714.0,20713.0,4.64821789]
[1673768062263,0.00639103,20714.0,20713.0,4.64821789]
[1673768062762,0.00639103,20714.0,20713.0,4.64831283]
[1673768063020,0.00639103,20714.0,20713.0,4.43216242]
[1673768063558,0.00639103,20714.0,20713.0,4.79373081]
[1673768063884,0.00639103,20714.0,20713.0,4.92433081]
[1673768064859,0.00867108,20716.0,20713.0,4.92433081]
[1673768065134,0.00867108,20716.0,20715.0,1.0986549]
[1673768065356,0.00867108,20716.0,20715.0,4.81447476]
[1673768065618,0.00867108,20716.0,20715.0,4.82297476]
[1673768066116,0.00867108,20716.0,20715.0,5.59230263]
[1673768066367,0.00867108,20716.0,20715.0,4.75313585]
[1673768066611,0.00867108,20716.0,20715.0,4.39546703]
[1673768067372,0.00867108,20716.0,20715.0,4.48746703]
[1673768067630,0.00867108,20716.0,20715.0,4.75313585]
[1673768067882,0.00867108,20716.0,20715.0,5.14513585]
[1673768068133,0.00867108,20716.0,20715.0,5.19723266]
[1673768068381,0.00867108,20716.0,20715.0,4.60370222]
[1673768068653,0.00867108,20716.0,20715.0,4.51170222]
[1673768068903,0.00867108,20716.0,20715.0,4.96395096]
[1673768069159,0.00867108,20716.0,20715.0,4.99952323]
[1673768069422,0.00867108,20716.0,20715.0,5.42938823]
[1673768069671,0.00867108,20716.0,20715.0,5.82531977]
[1673768070225,0.00867108,20716.0,20715.0,5.14377138]
[1673768070454,0.02814975,20716.0,20715.0,4.74783984]
[1673768071234,0.02814975,20716.0,20715.0,4.96399177]
[1673768071547,0.02814975,20716.0,20715.0,4.74783984]
[1673768071747,0.02814975,20716.0,20715.0,5.05200615]
[1673768072000,0.02814975,20716.0,20715.0,4.99986853]
[1673768072249,0.02814975,20716.0,20715.0,5.2880711]
[1673768072770,0.02814975,20716.0,20715.0,5.43348756]
[1673768073021,0.02814975,20716.0,20715.0,5.07581874]
[1673768073269,0.02814975,20716.0,20715.0,4.98381874]
[1673768073521,0.02814975,20716.0,20715.0,5.43348756]
[1673768073787,0.02814975,20716.0,20715.0,5.42498756]
[1673768074037,0.02814975,20716.0,20715.0,5.13678499]
[1673768074287,0.02814975,20716.0,20715.0,4.93311797]
[1673768074537,0.02814975,20716.0,20715.0,5.29468636]
[1673768074796,0.02814975,20716.0,20715.0,4.57544915]
[1673768075049,0.02814975,20716.0,20715.0,4.93311797]
[1673768075296,0.02814975,20716.0,20715.0,5.14949692]
[1673768076068,0.02814975,20716.0,20715.0,5.05749692]
[1673768076319,0.02814975,20716.0,20715.0,4.86099555]
[1673768076574,0.02814975,20716.0,20715.0,5.73470025]
[1673768077099,0.02814975,20716.0,20715.0,4.69653006]
[1673768077353,0.02814975,20716.0,20715.0,4.53640772]
[1673768077617,0.02814975,20716.0,20715.0,4.39213673]
[1673768077869,0.02814975,20716.0,20715.0,4.03380772]
[1673768078120,0.02814975,20716.0,20715.0,3.88953673]
[1673768078335,0.02814975,20716.0,20715.0,4.03380772]
[1673768078596,0.02814975,20716.0,20715.0,4.33380772]
[1673768079163,0.02814975,20716.0,20715.0,4.24180772]
[1673768079385,0.02914975,20716.0,20715.0,4.32680772]
[1673768080492,0.02914975,20716.0,20715.0,4.56978914]
[1673768080715,0.02914975,20716.0,20715.0,4.85829051]
[1673768080970,0.02914975,20716.0,20715.0,4.53550413]
[1673768081243,0.02914975,20716.0,20715.0,4.71411158]
[1673768081494,0.02914975,20716.0,20715.0,4.13665119]
[1673768081775,0.02914975,20716.0,20715.0,4.28082117]
[1673768082243,0.0218527,20716.0,20715.0,4.28082117]
[1673768082492,0.0218527,20716.0,20715.0,4.28094747]
[1673768082965,0.0218527,20716.0,20715.0,4.06444222]
[1673768083235,0.0218527,20716.0,20715.0,4.28094848]
[1673768083500,0.0218527,20716.0,20715.0,4.80048552]
[1673768083759,0.0218527,20716.0,20715.0,4.06444222]
[1673768084025,0.0218527,20716.0,20715.0,4.42601061]
[1673768084538,0.0218527,20716.0,20715.0,4.06444222]
[1673768084812,0.0218527,20716.0,20715.0,4.42601061]
[1673768085068,0.0218527,20716.0,20715.0,4.42620422]
[1673768085318,0.0218527,20716.0,20715.0,4.13750924]
[1673768085575,0.0218527,20716.0,20715.0,4.42619579]
[1673768086746,0.0218527,20716.0,20715.0,4.13750924]
[1673768088851,0.0218527,20716.0,20715.0,3.77594085]
[1673768089101,0.0218527,20716.0,20715.0,4.13688736]
[1673768089387,0.0218527,20716.0,20715.0,4.62632159]
[1673768089602,0.0218527,20716.0,20715.0,4.13688736]
[1673768089866,0.0218527,20716.0,20715.0,3.77594085]
[1673768090118,0.0218527,20716.0,20715.0,4.28384043]
[1673768090374,0.0218527,20716.0,20715.0,3.77594085]
[1673768090628,0.0218527,20716.0,20715.0,4.24962302]
[1673768091421,0.0218527,20716.0,20715.0,3.77594085]
[1673768091691,0.0218527,20716.0,20715.0,4.26171782]
[1673768092302,0.0218527,20716.0,20715.0,3.77594085]
[1673768092562,0.0218527,20716.0,20715.0,4.33040024]
[1673768094026,0.0218527,20716.0,20715.0,3.77594085]
[1673768094747,0.0218527,20716.0,20715.0,4.72990098]
[1673768095007,0.0218527,20716.0,20715.0,4.52128765]
[1673768095273,0.0218527,20716.0,20715.0,4.87895647]
[1673768095529,0.0218527,20716.0,20715.0,4.44488678]
[1673768096045,0.0218527,20716.0,20715.0,4.87869452]
[1673768096557,0.0218527,20716.0,20715.0,4.5210257]
[1673768098341,0.0218527,20716.0,20715.0,4.87869452]
[1673768098833,0.0218527,20716.0,20715.0,4.44488678]
[1673768099079,0.00895052,20718.0,20716.0,0.1]
[1673768099323,0.00895052,20718.0,20717.0,3.84173153]
[1673768099590,0.00895052,20718.0,20717.0,5.14301609]
[1673768099854,0.00895052,20718.0,20717.0,6.5911689]
[1673768100114,0.00895052,20718.0,20717.0,6.59099613]
[1673768100357,0.00895052,20718.0,20717.0,5.14301609]
[1673768100610,0.00995052,20718.0,20717.0,5.22901609]
[1673768102402,0.00896739,20720.0,20717.0,5.44158231]
[1673768102655,0.00896739,20720.0,20719.0,0.60780169]
[1673768102919,0.01005551,20723.0,20720.0,0.1]
[1673768103209,0.01005551,20723.0,20722.0,0.36149599]
[1673768103477,0.01005551,20723.0,20722.0,1.87993068]
[1673768103723,0.01005551,20723.0,20722.0,3.31339631]
[1673768103988,0.01005551,20723.0,20722.0,2.77945163]
[1673768104274,0.01005551,20723.0,20722.0,3.35521746]
[1673768104521,0.00505551,20723.0,20722.0,3.64441693]
[1673768104785,0.00505551,20723.0,20722.0,3.19971884]
[1673768105038,0.00505551,20723.0,20722.0,2.80436061]
[1673768105252,0.00505551,20723.0,20722.0,2.89136061]
[1673768105755,0.00505551,20723.0,20722.0,1.69420052]
[1673768106763,0.00505551,20723.0,20722.0,1.78720052]
[1673768107008,0.00505551,20723.0,20722.0,1.69427439]
[1673768107257,0.00505551,20723.0,20722.0,1.78727439]
[1673768107760,0.00505551,20723.0,20722.0,1.94974939]
[1673768111326,0.00505551,20723.0,20722.0,1.05285356]
[1673768111619,0.00505551,20723.0,20722.0,0.093]
[1673768111620,0.71928154,20723.0,20722.0,0.093]
[1673768112890,0.71928154,20723.0,20720.0,0.54396016]
[1673768113149,0.80771952,20723.0,20722.0,0.085]
[1673768113410,1.68985257,20723.0,20718.0,0.57027445]
[1673768113662,0.1306,20720.0,20718.0,0.57027445]
[1673768113928,0.23233691,20720.0,20718.0,0.57027445]
[1673768114196,0.1306,20720.0,20718.0,0.57027445]
[1673768114462,0.1306,20720.0,20717.0,0.62718638]
[1673768114716,0.23333691,20720.0,20718.0,0.085]
[1673768115047,0.61692361,20719.0,20718.0,0.085]
[1673768115724,0.61692361,20719.0,20717.0,1.65469672]
[1673768115976,0.61692361,20719.0,20717.0,1.59519534]
[1673768116231,0.61692361,20719.0,20718.0,0.321348]
[1673768116496,0.61792361,20719.0,20718.0,0.08506055]
[1673768116752,0.61692361,20719.0,20717.0,1.03299365]
[1673768117003,0.61792361,20719.0,20717.0,1.11799365]
[1673768117249,0.61792361,20719.0,20717.0,1.26249503]
[1673768117508,0.61892361,20719.0,20718.0,0.406348]
[1673768117765,0.1306,20720.0,20718.0,0.482672]
[1673768118016,0.14443383,20722.0,20718.0,0.482672]
[1673768118017,0.1306,20722.0,20718.0,0.482672]
[1673768118270,0.1306,20722.0,20718.0,0.67339795]
[1673768118519,0.63526437,20720.0,20719.0,6.055e-05]
[1673768119524,0.63526437,20720.0,20719.0,0.11053055]
[1673768120310,0.63626437,20720.0,20719.0,0.19553055]
[1673768120602,0.63626437,20720.0,20719.0,0.67817855]
[1673768122188,0.001,20720.0,20719.0,0.67817855]
[1673768123489,0.00084053,20720.0,20719.0,0.67817855]
[1673768125778,0.00084053,20720.0,20719.0,0.085]
[1673768128948,0.00075004,20720.0,20719.0,0.085]
[1673768129209,0.00075004,20720.0,20719.0,0.08761547]
[1673768133846,0.00066692,20720.0,20719.0,0.08761547]
[1673768134885,0.00066692,20720.0,20719.0,1.52775232]
[1673768135150,0.00066692,20720.0,20719.0,1.51331454]
[1673768135412,0.00066692,20720.0,20719.0,2.7786557]
[1673768135658,0.00066692,20720.0,20719.0,3.41930001]
[1673768135917,0.00066692,20720.0,20719.0,3.25816172]
[1673768136171,0.00066692,20720.0,20719.0,2.99540648]
[1673768136433,0.00066692,20720.0,20719.0,3.16618413]
[1673768136690,0.00066692,20720.0,20719.0,2.99540648]
[1673768136961,0.00066692,20720.0,20719.0,3.16618191]
[1673768137222,0.00066692,20720.0,20719.0,3.02168053]
[1673768137478,0.00066692,20720.0,20719.0,3.79128]
[1673768137973,0.00066692,20720.0,20719.0,4.29964397]
[1673768138222,0.00066692,20720.0,20719.0,3.79128]
[1673768138985,0.00066692,20720.0,20719.0,3.57452922]
[1673768139234,0.00066692,20720.0,20719.0,3.79117672]
[1673768139485,0.00066692,20720.0,20719.0,3.57452922]
[1673768139996,0.00066692,20720.0,20719.0,3.79116818]
[1673768140248,0.00066692,20720.0,20719.0,4.33917689]
[1673768140505,0.00066692,20720.0,20719.0,3.79116818]
[1673768141260,0.00066692,20720.0,20719.0,4.37180329]
[1673768141510,0.00066692,20720.0,20719.0,3.50196871]
[1673768142269,0.00066692,20720.0,20719.0,4.35048333]
[1673768142526,0.00066692,20720.0,20719.0,3.50196871]
[1673768142780,0.00066692,20720.0,20719.0,4.17070827]
[1673768143030,0.00066692,20720.0,20719.0,3.50196871]
[1673768143290,0.00066692,20720.0,20719.0,3.79116818]
[1673768144323,0.00066692,20720.0,20719.0,3.57452922]
[1673768144573,0.00066692,20720.0,20719.0,4.11980334]
[1673768144836,0.00066692,20720.0,20719.0,4.33650413]
[1673768145106,0.00066692,20720.0,20719.0,3.79123001]
[1673768145606,0.00066692,20720.0,20719.0,3.57452922]
[1673768145865,0.00066692,20720.0,20719.0,3.93602521]
[1673768146133,0.00066692,20720.0,20719.0,4.52140102]
[1673768146387,0.00066692,20720.0,20719.0,3.93602521]
[1673768147390,0.00066692,20720.0,20719.0,4.33602521]
[1673768147638,0.00066692,20720.0,20719.0,4.04682574]
[1673768147894,0.00066692,20720.0,20719.0,4.40449456]
[1673768148154,0.00052203,20720.0,20719.0,4.04299857]
[1673768149398,0.00052203,20720.0,20719.0,4.77973151]
[1673768149653,0.00052203,20720.0,20719.0,4.04299857]
[1673768150159,0.00052203,20720.0,20719.0,4.34589004]
[1673768150419,0.00052203,20720.0,20719.0,4.04299857]
[1673768156478,0.00052203,20720.0,20719.0,4.64982787]
[1673768156737,0.10225894,20720.0,20719.0,4.63602332]
[1673768157012,0.10225894,20720.0,20719.0,3.69606586]
[1673768157013,0.00052203,20720.0,20719.0,3.69606586]
[1673768157283,0.00052203,20720.0,20719.0,3.47944548]
[1673768157768,0.00052203,20720.0,20719.0,2.39330444]
[1673768158019,0.00052203,20720.0,20719.0,0.96220169]
[1673768160305,0.66572181,20720.0,20719.0,0.96481716]
[1673768160817,0.66572181,20720.0,20719.0,0.96220169]
[1673768161139,0.00052203,20720.0,20719.0,0.96220169]
[1673768162348,0.00052203,20720.0,20719.0,1.44484969]
[1673768164400,0.00052203,20720.0,20719.0,1.58939404]
[1673768164642,0.00052203,20720.0,20719.0,3.5346365]
[1673768165145,0.00052203,20720.0,20719.0,3.0519885]
[1673768165905,0.00052203,20720.0,20719.0,1.94222803]
[1673768166187,0.00052203,20720.0,20719.0,3.05199253]
[1673768166406,0.00052203,20720.0,20719.0,1.94222803]
[1673768166658,0.00052203,20720.0,20719.0,1.62088003]
[1673768167875,0.00052203,20720.0,20719.0,1.86074927]
[1673768168878,0.10225894,20720.0,20719.0,0.725]
[1673768169130,0.78144491,20720.0,20719.0,0.725]
[1673768170626,0.78092288,20720.0,20719.0,0.64]
[1673768170906,0.78192288,20720.0,20719.0,0.719]
[1673768173706,0.001,20720.0,20719.0,0.719]
[1673768174220,0.001,20720.0,20719.0,2.79869651]
[1673768174475,0.00089793,20720.0,20719.0,3.17394178]
[1673768174748,0.00089793,20720.0,20719.0,4.13926733]
[1673768175002,0.00089793,20720.0,20719.0,4.31612502]
[1673768175271,0.00089793,20720.0,20719.0,4.16108372]
[1673768175537,0.00089793,20720.0,20719.0,3.94446334]
[1673768176061,0.5508784,20723.0,20720.0,0.1]
[1673768176526,0.00505551,20723.0,20721.0,2.57349396]
[1673768176786,0.00505551,20723.0,20722.0,0.321296]
[1673768177076,0.00505551,20723.0,20722.0,0.482578]
[1673768177328,0.00605551,20723.0,20722.0,0.482578]
[1673768178384,0.00505551,20723.0,20722.0,0.482578]
[1673768178636,0.01805551,20723.0,20722.0,0.482578]
[1673768179224,0.00505551,20723.0,20722.0,0.482578]
[1673768179477,0.00605551,20723.0,20722.0,0.561578]
[1673768179735,0.00505551,20723.0,20722.0,0.482578]
[1673768179995,0.00605551,20723.0,20722.0,1.12613525]
[1673768181814,0.00605551,20723.0,20722.0,1.44748325]
[1673768182854,0.00505551,20723.0,20722.0,1.36848325]
[1673768183084,0.00605551,20723.0,20722.0,1.12613525]
[1673768184323,0.00605551,20723.0,20722.0,1.44748325]
[1673768184561,0.00605551,20723.0,20722.0,1.36012769]
[1673768184815,0.00605551,20723.0,20722.0,2.32478546]
[1673768188136,0.00605551,20723.0,20722.0,2.02478546]
[1673768189216,0.00605551,20723.0,20722.0,2.32478546]
[1673768189978,0.00605551,20723.0,20722.0,1.66012769]
[1673768190766,0.00605551,20723.0,20722.0,3.17705551]
[1673768191041,0.00508071,20723.0,20722.0,3.27321851]
[1673768191298,0.00508071,20723.0,20722.0,2.91246217]
[1673768191548,0.00508071,20723.0,20722.0,2.92096217]
[1673768191893,0.01091024,20725.0,20723.0,0.1]
[1673768192068,0.01091024,20725.0,20724.0,0.63562269]
[1673768192332,0.01091024,20725.0,20724.0,3.8655183]
[1673768192592,0.01091024,20725.0,20724.0,4.26995454]
[1673768193366,0.01091024,20725.0,20724.0,4.75245454]
[1673768193623,0.01091024,20725.0,20724.0,4.47246345]
[1673768193886,0.01091024,20725.0,20724.0,4.76095454]
[1673768194142,0.01091024,20725.0,20724.0,4.47246345]
[1673768194460,0.01091024,20725.0,20724.0,4.61661622]
[1673768194909,0.01091024,20725.0,20724.0,4.56546345]
[1673768195158,0.01091024,20725.0,20724.0,4.76095454]
[1673768195411,0.01091024,20725.0,20724.0,4.85281793]
[1673768195708,0.01091024,20725.0,20724.0,4.76081793]
[1673768195945,0.01091024,20725.0,20724.0,5.19862967]
[1673768196192,0.01091024,20725.0,20724.0,3.14794632]
[1673768197791,0.01091024,20725.0,20724.0,3.05594632]
[1673768198046,0.01191024,20725.0,20724.0,3.14094632]
[1673768198297,0.01191024,20725.0,20724.0,3.35594632]
[1673768198801,0.01291024,20725.0,20724.0,3.44094632]
[1673768200386,0.01291024,20725.0,20724.0,3.14094632]
[1673768200639,0.01291024,20725.0,20724.0,3.44094632]
[1673768200889,0.01291024,20725.0,20724.0,2.95841432]
[1673768201916,0.01291024,20725.0,20724.0,2.65841432]
[1673768202224,0.01291024,20725.0,20724.0,2.95841432]
[1673768202690,0.01291024,20725.0,20724.0,2.65841432]
[1673768206541,0.03225147,20725.0,20724.0,2.65841432]
[1673768207358,0.03225147,20725.0,20724.0,2.95841432]
[1673768208440,0.03225147,20725.0,20724.0,2.46818669]
[1673768208954,0.03225147,20725.0,20724.0,2.61226189]
[1673768209709,0.03225147,20725.0,20724.0,3.57727493]
[1673768210468,0.44481306,20729.0,20725.0,0.1]
[1673768210723,0.0161075,20730.0,20726.0,1.76344469]
[1673768210974,0.0161075,20730.0,20727.0,0.57720169]
[1673768211220,0.0161075,20730.0,20728.0,0.19072595]
[1673768211468,0.62630784,20730.0,20728.0,0.47720169]
[1673768212201,0.62630784,20730.0,20728.0,0.95963769]
[1673768212704,0.62630784,20730.0,20729.0,0.11073819]
[1673768213692,0.62630784,20730.0,20729.0,0.11047]
[1673768213942,0.62630784,20730.0,20729.0,0.00026819]
[1673768214193,0.62630784,20730.0,20729.0,0.11073819]
[1673768214702,0.62630784,20730.0,20729.0,0.19873819]
[1673768214947,0.62630784,20730.0,20729.0,0.08826819]
[1673768215221,0.62630784,20730.0,20729.0,0.088]
[1673768215719,0.0161075,20730.0,20729.0,0.088]
[1673768215968,0.0161075,20730.0,20729.0,0.7153554]
[1673768216965,0.0161075,20730.0,20729.0,0.71562849]
[1673768217255,0.0161075,20730.0,20729.0,0.088]
[1673768217763,0.71312813,20730.0,20729.0,0.088]
[1673768218797,0.5686943,20730.0,20729.0,0.088]
[1673768219024,0.71312813,20730.0,20729.0,0.088]
[1673768219530,0.5686943,20730.0,20729.0,0.088]
[1673768219771,0.71312813,20730.0,20729.0,0.088]
[1673768221534,0.5686943,20730.0,20729.0,0.088]
[1673768222036,0.92966154,20730.0,20729.0,0.088]
[1673768222531,0.71312813,20730.0,20729.0,0.088]
[1673768223028,0.71312813,20730.0,20729.0,0.328]
[1673768224051,0.65596013,20730.0,20729.0,0.328]
[1673768224307,0.87249354,20730.0,20729.0,0.328]
[1673768224570,0.92966154,20730.0,20729.0,0.328]
[1673768225763,0.78522771,20730.0,20729.0,0.328]
[1673768226018,0.92954603,20730.0,20729.0,0.328]
[1673768226267,0.78522771,20730.0,20729.0,0.328]
[1673768226552,0.92954648,20730.0,20729.0,0.328]
[1673768227060,0.92955444,20730.0,20729.0,0.328]
[1673768227317,0.87238644,20730.0,20729.0,0.328]
[1673768227832,0.87244861,20730.0,20729.0,0.328]
[1673768229357,0.6559152,20730.0,20729.0,0.32789404]
[1673768229618,0.87244861,20730.0,20729.0,0.32789404]
[1673768230362,0.37702981,20730.0,20729.0,0.87866344]
[1673768230611,0.0161075,20730.0,20729.0,0.87866344]
[1673768230860,0.0161075,20730.0,20729.0,1.20137229]
[1673768231126,0.0161075,20730.0,20729.0,1.68378729]
[1673768231640,0.0161075,20730.0,20729.0,1.36243929]
[1673768237404,0.0161075,20730.0,20729.0,1.36138271]
[1673768244524,0.0161075,20730.0,20729.0,2.79173743]
[1673768245266,0.0161075,20730.0,20729.0,2.64766223]
[1673768245510,0.0161075,20730.0,20729.0,2.79173743]
[1673768246024,0.0161075,20730.0,20729.0,2.64766223]
[1673768246724,0.0161075,20730.0,20729.0,2.79173743]
[1673768246988,0.0161075,20730.0,20729.0,2.64766223]
[1673768247741,0.0161075,20730.0,20729.0,2.79173743]
[1673768247996,0.0161075,20730.0,20729.0,2.64766223]
[1673768248251,0.0161075,20730.0,20729.0,2.79173743]
[1673768250254,0.0161075,20730.0,20729.0,3.09173743]
[1673768251020,0.0161075,20730.0,20729.0,3.86821212]
[1673768251278,0.01367719,20730.0,20729.0,3.15868122]
[1673768252043,0.01367719,20730.0,20729.0,3.51959581]
[1673768252313,0.01367719,20730.0,20729.0,3.58844739]
[1673768252560,0.01367719,20730.0,20729.0,3.28979473]
[1673768252816,0.01367719,20730.0,20729.0,3.50636352]
[1673768253071,0.01367719,20730.0,20729.0,3.65906429]
[1673768253389,0.01367719,20730.0,20729.0,3.46458184]
[1673768253622,0.01367719,20730.0,20729.0,3.63069054]
[1673768253876,0.01367719,20730.0,20729.0,3.33069054]
[1673768254387,0.01367719,20730.0,20729.0,3.63069054]
[1673768254905,0.01367719,20730.0,20729.0,3.53969054]
[1673768255666,0.01367719,20730.0,20729.0,3.63069054]
[1673768257483,0.01367719,20730.0,20729.0,3.14827554]
[1673768257726,0.01367719,20730.0,20729.0,1.73896576]
[1673768257996,0.01367719,20730.0,20729.0,0.652348]
[1673768258239,0.01367719,20730.0,20729.0,0.331]
[1673768258240,0.62194932,20730.0,20729.0,0.331]
[1673768258503,0.67911732,20730.0,20729.0,0.331]
[1673768259213,0.67911732,20730.0,20729.0,0.24088236]
[1673768259501,0.67911732,20730.0,20729.0,0.24]
[1673768260266,0.68011732,20730.0,20729.0,0.324]
[1673768263332,0.82450622,20730.0,20729.0,0.324]
[1673768263811,0.68011732,20730.0,20729.0,0.324]
[1673768264110,0.82450622,20730.0,20729.0,0.324]
[1673768264838,0.68011732,20730.0,20729.0,0.324]
[1673768266366,0.62294932,20730.0,20729.0,0.324]
[1673768266890,0.01467719,20730.0,20729.0,0.324]
[1673768267657,0.01467719,20730.0,20729.0,0.7991853]
[1673768267912,0.01367719,20730.0,20729.0,0.7151853]
[1673768268165,0.01467719,20730.0,20729.0,0.7991853]
[1673768269454,0.01467719,20730.0,20729.0,2.08745105]
[1673768269702,0.01467719,20730.0,20729.0,2.76365403]
[1673768269955,0.01467719,20730.0,20729.0,2.61927577]
[1673768270211,0.01467719,20730.0,20729.0,3.24606903]
[1673768272563,0.01467719,20730.0,20729.0,2.13678941]
[1673768272836,0.01467719,20730.0,20729.0,3.09168178]
[1673768273097,0.01467719,20730.0,20729.0,3.23606004]
[1673768274399,0.01460693,20730.0,20729.0,3.08292067]
[1673768274649,0.01460693,20730.0,20729.0,3.43778413]
[1673768274972,0.01460693,20730.0,20729.0,3.22121534]
[1673768275447,0.01460693,20730.0,20729.0,2.11193729]
[1673768277001,0.01460693,20730.0,20729.0,3.01422805]
[1673768277258,0.01460693,20730.0,20729.0,3.52618742]
[1673768277506,0.01460693,20730.0,20729.0,3.88279516]
[1673768277757,0.01460693,20730.0,20729.0,3.59405]
[1673768278010,0.01460693,20730.0,20729.0,4.02714096]
[1673768279546,0.01460693,20730.0,20729.0,3.7468958]
[1673768279809,0.01460693,20730.0,20729.0,4.50224091]
[1673768280127,0.01460693,20730.0,20729.0,4.21350483]
[1673768280391,0.01360693,20730.0,20729.0,3.60877613]
[1673768280627,0.01360693,20730.0,20729.0,3.84875245]
[1673768280897,0.01360693,20730.0,20729.0,3.60872142]
[1673768281150,0.01360693,20730.0,20729.0,3.69972142]
[1673768281475,0.01360693,20730.0,20729.0,3.90872142]
[1673768281678,0.01360693,20730.0,20729.0,3.54875245]
[1673768281929,0.01360693,20730.0,20729.0,3.14678089]
[1673768282188,0.01360693,20730.0,20729.0,3.38892707]
[1673768282440,0.01360693,20730.0,20729.0,4.1903864]
[1673768282698,0.01360693,20730.0,20729.0,3.53328411]
[1673768283459,0.01360693,20730.0,20729.0,4.01231928]
[1673768283709,0.01360693,20730.0,20729.0,4.0123508]
[1673768284440,0.01360693,20730.0,20729.0,3.72361472]
[1673768284691,0.01360693,20730.0,20729.0,3.42361472]
[1673768285185,0.01360693,20730.0,20729.0,3.56799948]
[1673768286721,0.01360693,20730.0,20729.0,3.56799132]
[1673768286964,0.01360693,20730.0,20729.0,3.56845624]
[1673768287218,0.01360693,20730.0,20729.0,3.24503631]
[1673768287467,0.01360693,20730.0,20729.0,3.53377239]
[1673768287704,0.01360693,20730.0,20729.0,3.6781034]
[1673768287952,0.01360693,20730.0,20729.0,3.31718881]
[1673768288210,0.01360693,20730.0,20729.0,4.70418365]
[1673768288465,0.01360693,20730.0,20729.0,4.20321373]
[1673768289241,0.01360693,20730.0,20729.0,3.53374122]
[1673768289481,0.01360693,20730.0,20729.0,4.1403178]
[1673768289740,0.01360693,20730.0,20729.0,3.55158172]
[1673768289995,0.01360693,20730.0,20729.0,3.21352913]
[1673768290545,0.01360693,20730.0,20729.0,2.8458387]
[1673768291057,0.01360693,20730.0,20729.0,2.53926212]
[1673768291310,0.01360693,20730.0,20729.0,3.04322876]
[1673768291609,0.01360693,20730.0,20729.0,3.49527962]
[1673768291842,0.01360693,20730.0,20729.0,3.25828957]
[1673768292075,0.01360693,20730.0,20729.0,3.10623871]
[1673768292324,0.01360693,20730.0,20729.0,2.8896863]
[1673768295665,0.01353525,20730.0,20729.0,2.8896863]
[1673768296734,0.01353525,20730.0,20729.0,3.2574405]
[1673768296983,0.01353525,20730.0,20729.0,3.53380499]
[1673768297750,0.01353525,20730.0,20729.0,3.24506891]
[1673768298005,0.01353525,20730.0,20729.0,3.51932559]
[1673768298277,0.01353525,20730.0,20729.0,3.81932559]
[1673768298530,0.01353525,20730.0,20729.0,3.66371831]
[1673768299037,0.01353525,20730.0,20729.0,3.51932559]
[1673768299578,0.01353525,20730.0,20729.0,3.96372342]
[1673768299815,0.01353525,20730.0,20729.0,3.51932559]
[1673768300620,0.01353525,20730.0,20729.0,3.23380499]
[1673768301350,0.01353525,20730.0,20729.0,3.53380499]
[1673768301612,0.01353525,20730.0,20729.0,3.31725258]
[1673768301832,0.01353525,20730.0,20729.0,4.3469214]
[1673768302065,0.01353525,20730.0,20729.0,3.31725258]
[1673768302845,0.01353525,20730.0,20729.0,3.96327791]
[1673768303351,0.01353525,20730.0,20729.0,3.31725258]
[1673768303617,0.01353525,20730.0,20729.0,4.33363845]